fUST/lending_fUST_20260521
["ID","MTS","AMOUNT","RATE_DAILY","PERIOD"]
[422716378,1779297042000,-500.0,8.767e-05,2]
[422716385,1779297042000,-471.97516961,8.767e-05,2]
[422716375,1779297042000,-1552.87,8.767e-05,2]
[422716383,1779297042000,-500.0,8.767e-05,2]
[422716384,1779297042000,-500.0,8.767e-05,2]
[422716397,1779297042000,-1719.79,8.767e-05,2]
[422716392,1779297042000,-500.0,8.767e-05,2]
[422716402,1779297042000,-500.0,8.767e-05,2]
[422716386,1779297042000,-522.76846377,8.767e-05,2]
[422716395,1779297042000,-500.0,8.767e-05,2]
[422716400,1779297042000,-500.0,8.767e-05,2]
[422716389,1779297042000,-500.0,8.767e-05,2]
[422716405,1779297042000,-3622.62,8.767e-05,2]
[422716399,1779297042000,-1763.57,8.767e-05,2]
[422716390,1779297042000,-985.38,8.767e-05,2]
[422716398,1779297042000,-1019.57,8.767e-05,2]
[422716388,1779297042000,-500.0,8.767e-05,2]
[422716391,1779297042000,-648.75,8.767e-05,2]
[422716396,1779297042000,-500.0,8.767e-05,2]
[422716403,1779297042000,-4937.73,8.767e-05,2]
[422716407,1779297042000,-2698.74,8.767e-05,2]
[422716346,1779297042000,-580.51,8.767e-05,2]
[422716401,1779297042000,-5469.1,8.767e-05,2]
[422716377,1779297042000,-506.62,8.767e-05,2]
[422716393,1779297042000,-2229.71,8.767e-05,2]
[422716382,1779297042000,-500.0,8.767e-05,2]
[422716379,1779297042000,-500.0,8.767e-05,2]
[422716348,1779297042000,-500.0,8.767e-05,2]
[422716345,1779297042000,-500.0,8.767e-05,2]
[422716351,1779297042000,-500.0,8.767e-05,2]
[422716353,1779297042000,-1325.68,8.767e-05,2]
[422716355,1779297042000,-500.0,8.767e-05,2]
[422716359,1779297042000,-500.0,8.767e-05,2]
[422716358,1779297042000,-713.38,8.767e-05,2]
[422716362,1779297042000,-500.0,8.767e-05,2]
[422716352,1779297042000,-500.0,8.767e-05,2]
[422716357,1779297042000,-500.0,8.767e-05,2]
[422716354,1779297042000,-500.0,8.767e-05,2]
[422716360,1779297042000,-500.0,8.767e-05,2]
[422716344,1779297042000,-500.0,8.767e-05,2]
[422716356,1779297042000,-500.0,8.767e-05,2]
[422716361,1779297042000,-648.0790043,8.767e-05,2]
[422716373,1779297042000,-608.34,8.767e-05,2]
[422716371,1779297042000,-500.0,8.767e-05,2]
[422716367,1779297042000,-1189.73,8.767e-05,2]
[422716370,1779297042000,-2105.11,8.767e-05,2]
[422716372,1779297042000,-500.0,8.767e-05,2]
[422716369,1779297042000,-500.0,8.767e-05,2]
[422716363,1779297042000,-500.0,8.767e-05,2]
[422716368,1779297042000,-838.68,8.767e-05,2]
[422716364,1779297042000,-968.08,8.767e-05,2]
[422716387,1779297042000,-623.25,8.767e-05,2]
[422716366,1779297042000,-500.0,8.767e-05,2]
[422716365,1779297042000,-500.0,8.767e-05,2]
[422716446,1779297043000,-6445.13,8.767e-05,2]
[422716453,1779297043000,-1688.66,8.767e-05,2]
[422716447,1779297043000,-842.68,8.767e-05,2]
[422716445,1779297043000,-500.0,8.767e-05,2]
[422716448,1779297043000,-28395.55,8.767e-05,2]
[422716455,1779297043000,-202.31,8.767e-05,2]
[422716450,1779297043000,-1433.22,8.767e-05,2]
[422716441,1779297043000,-500.0,8.767e-05,2]
[422716452,1779297043000,-500.0,8.767e-05,2]
[422716454,1779297043000,-1295.05,8.767e-05,2]
[422716443,1779297043000,-2399.66,8.767e-05,2]
[422716459,1779297043000,-500.0,8.767e-05,2]
[422716457,1779297043000,-890.67,8.767e-05,2]
[422716458,1779297043000,-1363.6,8.767e-05,2]
[422716456,1779297043000,-4515.09,8.767e-05,2]
[422716462,1779297043000,-1176.68,8.767e-05,2]
[422716463,1779297043000,-1772.93,8.767e-05,2]
[422716460,1779297043000,-574.55,8.767e-05,2]
[422716461,1779297043000,-5620.98,8.767e-05,2]
[422716466,1779297043000,-501.24050567,8.767e-05,2]
[422716465,1779297043000,-232.63656257,8.767e-05,2]
[422716451,1779297043000,-500.0,8.767e-05,2]
[422716464,1779297043000,-500.0,8.767e-05,2]
[422716444,1779297043000,-2541.01,8.767e-05,2]
[422716442,1779297043000,-580.89,8.767e-05,2]
[422716429,1779297043000,-1128.17,8.767e-05,2]
[422716435,1779297043000,-686.36,8.767e-05,2]
[422716467,1779297043000,-500.0,8.767e-05,2]
[422716414,1779297043000,-500.0,8.767e-05,2]
[422716409,1779297043000,-1903.54,8.767e-05,2]
[422716416,1779297043000,-500.0,8.767e-05,2]
[422716420,1779297043000,-1851.7,8.767e-05,2]
[422716418,1779297043000,-241.99284349,8.767e-05,2]
[422716413,1779297043000,-1065.15,8.767e-05,2]
[422716411,1779297043000,-500.0,8.767e-05,2]
[422716423,1779297043000,-522.43,8.767e-05,2]
[422716422,1779297043000,-1682.9,8.767e-05,2]
[422716426,1779297043000,-500.0,8.767e-05,2]
[422716425,1779297043000,-2253.31,8.767e-05,2]
[422716438,1779297043000,-1554.66,8.767e-05,2]
[422716428,1779297043000,-500.0,8.767e-05,2]
[422716427,1779297043000,-500.0,8.767e-05,2]
[422716430,1779297043000,-1139.28,8.767e-05,2]
[422716434,1779297043000,-781.42,8.767e-05,2]
[422716437,1779297043000,-1159.54,8.767e-05,2]
[422716432,1779297043000,-500.0,8.767e-05,2]
[422716440,1779297043000,-1509.47,8.767e-05,2]
[422716439,1779297043000,-667.77,8.767e-05,2]
[422716433,1779297043000,-500.0,8.767e-05,2]
[422716431,1779297043000,-500.0,8.767e-05,2]
[422716436,1779297043000,-616.63,8.767e-05,2]
[422716468,1779297043000,-4396.86,8.767e-05,2]
[422716469,1779297043000,-767.01,8.767e-05,2]
[422716506,1779297043000,-252.0,8.819e-05,2]
[422716498,1779297043000,-300.0,8.771e-05,2]
[422716500,1779297043000,-155.93583404,8.781e-05,7]
[422716502,1779297043000,-160.0,8.8e-05,2]
[422716508,1779297043000,-16069.19544537,8.823e-05,21]
[422716504,1779297043000,-7759.45655886,8.816e-05,21]
[422716510,1779297043000,-573.0,8.975e-05,2]
[422716509,1779297043000,-822.6078,8.904e-05,2]
[422716507,1779297043000,-303.0,8.819e-05,2]
[422716505,1779297043000,-420.0,8.819e-05,2]
[422716501,1779297043000,-258.70927578,8.781e-05,2]
[422716511,1779297043000,-1000.0,9e-05,10]
[422716513,1779297043000,-200.0,9e-05,2]
[422716520,1779297043000,-500.0,9.041e-05,2]
[422716512,1779297043000,-304130.97749825,9e-05,2]
[422716518,1779297043000,-500.0,9.041e-05,2]
[422716515,1779297043000,-709.05447041,9.035e-05,2]
[422716516,1779297043000,-787.54509446,9.035e-05,4]
[422716519,1779297043000,-500.0,9.041e-05,2]
[422716514,1779297043000,-1000.0,9e-05,2]
[422716517,1779297043000,-2659.04,9.041e-05,2]
[422716522,1779297043000,-500.0,9.041e-05,2]
[422716470,1779297043000,-500.0,8.767e-05,2]
[422716521,1779297043000,-511.54,9.041e-05,2]
[422716499,1779297043000,-613.54167377,8.775e-05,4]
[422716497,1779297043000,-300.0,8.771e-05,2]
[422716503,1779297043000,-178.02274073,8.808e-05,7]
[422716496,1779297043000,-300.0,8.771e-05,2]
[422716471,1779297043000,-500.0,8.767e-05,2]
[422716472,1779297043000,-563.59,8.767e-05,2]
[422716473,1779297043000,-2851.03,8.767e-05,2]
[422716480,1779297043000,-661.31,8.767e-05,2]
[422716474,1779297043000,-500.0,8.767e-05,2]
[422716476,1779297043000,-500.0,8.767e-05,2]
[422716481,1779297043000,-500.0,8.767e-05,2]
[422716495,1779297043000,-300.0,8.771e-05,2]
[422716478,1779297043000,-368.56104829,8.767e-05,2]
[422716479,1779297043000,-1982.07,8.767e-05,2]
[422716482,1779297043000,-500.0,8.767e-05,2]
[422716483,1779297043000,-573.0,8.767e-05,2]
[422716477,1779297043000,-500.0,8.767e-05,2]
[422716486,1779297043000,-300.0,8.771e-05,2]
[422716490,1779297043000,-300.0,8.771e-05,2]
[422716484,1779297043000,-300.0,8.771e-05,2]
[422716487,1779297043000,-300.0,8.771e-05,2]
[422716489,1779297043000,-300.0,8.771e-05,2]
[422716488,1779297043000,-300.0,8.771e-05,2]
[422716491,1779297043000,-300.0,8.771e-05,2]
[422716494,1779297043000,-300.0,8.771e-05,2]
[422716492,1779297043000,-300.0,8.771e-05,2]
[422716485,1779297043000,-300.0,8.771e-05,2]
[422716493,1779297043000,-300.0,8.771e-05,2]
[422716552,1779297044000,-1325.68,9.041e-05,2]
[422716561,1779297044000,-500.0,9.041e-05,2]
[422716563,1779297044000,-500.0,9.041e-05,2]
[422716560,1779297044000,-500.0,9.041e-05,2]
[422716562,1779297044000,-968.08,9.041e-05,2]
[422716550,1779297044000,-500.0,9.041e-05,2]
[422716551,1779297044000,-500.0,9.041e-05,2]
[422716553,1779297044000,-500.0,9.041e-05,2]
[422716548,1779297044000,-500.0,9.041e-05,2]
[422716564,1779297044000,-500.0,9.041e-05,2]
[422716558,1779297044000,-500.0,9.041e-05,2]
[422716567,1779297044000,-4106.28601474,9.041e-05,2]
[422716575,1779297044000,-1702.51,9.041e-05,2]
[422716565,1779297044000,-1189.73,9.041e-05,2]
[422716566,1779297044000,-838.68,9.041e-05,2]
[422716569,1779297044000,-2105.11,9.041e-05,2]
[422716559,1779297044000,-500.0,9.041e-05,2]
[422716571,1779297044000,-500.0,9.041e-05,2]
[422716570,1779297044000,-500.0,9.041e-05,2]
[422716583,1779297044000,-623.25,9.041e-05,2]
[422716573,1779297044000,-500.0,9.041e-05,2]
[422716584,1779297044000,-500.0,9.041e-05,2]
[422716572,1779297044000,-608.34,9.041e-05,2]
[422716576,1779297044000,-506.62,9.041e-05,2]
[422716555,1779297044000,-500.0,9.041e-05,2]
[422716568,1779297044000,-500.0,9.041e-05,2]
[422716554,1779297044000,-500.0,9.041e-05,2]
[422716525,1779297044000,-500.0,9.041e-05,2]
[422716547,1779297044000,-478.06931671,9.041e-05,2]
[422716523,1779297044000,-789.16,9.041e-05,2]
[422716524,1779297044000,-500.0,9.041e-05,2]
[422716526,1779297044000,-500.0,9.041e-05,2]
[422716530,1779297044000,-556.4015708,9.041e-05,2]
[422716527,1779297044000,-500.0,9.041e-05,2]
[422716531,1779297044000,-27979.23760347,9.041e-05,2]
[422716529,1779297044000,-528.15,9.041e-05,2]
[422716528,1779297044000,-908.58,9.041e-05,2]
[422716532,1779297044000,-500.0,9.041e-05,2]
[422716534,1779297044000,-500.0,9.041e-05,2]
[422716536,1779297044000,-2303.01,9.041e-05,2]
[422716533,1779297044000,-796.48,9.041e-05,2]
[422716539,1779297044000,-597.99,9.041e-05,2]
[422716537,1779297044000,-500.0,9.041e-05,2]
[422716538,1779297044000,-500.0,9.041e-05,2]
[422716535,1779297044000,-500.0,9.041e-05,2]
[422716540,1779297044000,-861.39,9.041e-05,2]
[422716541,1779297044000,-683.62,9.041e-05,2]
[422716544,1779297044000,-500.0,9.041e-05,2]
[422716543,1779297044000,-500.0,9.041e-05,2]
[422716542,1779297044000,-500.0,9.041e-05,2]
[422716545,1779297044000,-580.51,9.041e-05,2]
[422716556,1779297044000,-500.0,9.041e-05,2]
[422716546,1779297044000,-500.0,9.041e-05,2]
[422716557,1779297044000,-713.38,9.041e-05,2]
[422716549,1779297044000,-510.73,9.041e-05,2]
[422716574,1779297044000,-1552.87,9.041e-05,2]
[422716626,1779297044000,-500.0,9.041e-05,2]
[422716578,1779297044000,-664.68,9.041e-05,2]
[422716611,1779297044000,-500.0,9.041e-05,2]
[422716616,1779297044000,-350.40907231,9.041e-05,2]
[422716617,1779297044000,-500.0,9.041e-05,2]
[422716612,1779297044000,-500.0,9.041e-05,2]
[422716610,1779297044000,-2253.31,9.041e-05,2]
[422716620,1779297044000,-686.36,9.041e-05,2]
[422716613,1779297044000,-500.0,9.041e-05,2]
[422716615,1779297044000,-1139.28,9.041e-05,2]
[422716619,1779297044000,-781.42,9.041e-05,2]
[422716621,1779297044000,-616.63,9.041e-05,2]
[422716618,1779297044000,-500.0,9.041e-05,2]
[422716622,1779297044000,-1159.54,9.041e-05,2]
[422716623,1779297044000,-1554.66,9.041e-05,2]
[422716635,1779297044000,-500.0,9.041e-05,2]
[422716627,1779297044000,-580.89,9.041e-05,2]
[422716634,1779297044000,-1433.22,9.041e-05,2]
[422716636,1779297044000,-500.0,9.041e-05,2]
[422716625,1779297044000,-1509.47,9.041e-05,2]
[422716628,1779297044000,-2399.66,9.041e-05,2]
[422716631,1779297044000,-6445.13,9.041e-05,2]
[422716630,1779297044000,-500.0,9.041e-05,2]
[422716632,1779297044000,-842.68,9.041e-05,2]
[422716629,1779297044000,-2541.01,9.041e-05,2]
[422716633,1779297044000,-28395.55,9.041e-05,2]
[422716580,1779297044000,-500.0,9.041e-05,2]
[422716614,1779297044000,-1128.17,9.041e-05,2]
[422716609,1779297044000,-522.43,9.041e-05,2]
[422716624,1779297044000,-667.77,9.041e-05,2]
[422716599,1779297044000,-3622.62,9.041e-05,2]
[422716579,1779297044000,-500.0,9.041e-05,2]
[422716603,1779297044000,-500.0,9.041e-05,2]
[422716577,1779297044000,-500.0,9.041e-05,2]
[422716582,1779297044000,-500.0,9.041e-05,2]
[422716581,1779297044000,-500.0,9.041e-05,2]
[422716585,1779297044000,-500.0,9.041e-05,2]
[422716586,1779297044000,-985.38,9.041e-05,2]
[422716587,1779297044000,-648.75,9.041e-05,2]
[422716590,1779297044000,-500.0,9.041e-05,2]
[422716588,1779297044000,-500.0,9.041e-05,2]
[422716591,1779297044000,-500.0,9.041e-05,2]
[422716593,1779297044000,-1019.57,9.041e-05,2]
[422716592,1779297044000,-1719.79,9.041e-05,2]
[422716589,1779297044000,-2229.71,9.041e-05,2]
[422716600,1779297044000,-2698.74,9.041e-05,2]
[422716594,1779297044000,-1763.57,9.041e-05,2]
[422716597,1779297044000,-500.0,9.041e-05,2]
[422716607,1779297044000,-1851.7,9.041e-05,2]
[422716608,1779297044000,-1682.9,9.041e-05,2]
[422716598,1779297044000,-4937.73,9.041e-05,2]
[422716601,1779297044000,-1903.54,9.041e-05,2]
[422716596,1779297044000,-5469.1,9.041e-05,2]
[422716606,1779297044000,-500.0,9.041e-05,2]
[422716602,1779297044000,-500.0,9.041e-05,2]
[422716604,1779297044000,-1065.15,9.041e-05,2]
[422716595,1779297044000,-500.0,9.041e-05,2]
[422716605,1779297044000,-500.0,9.041e-05,2]
[422716678,1779297045000,-425.008656,9.209e-05,2]
[422716682,1779297045000,-5000.0,9.227e-05,2]
[422716670,1779297045000,-288.82727327,9.101e-05,7]
[422716691,1779297045000,-511.54,9.315e-05,2]
[422716683,1779297045000,-5000.0,9.227e-05,2]
[422716681,1779297045000,-5000.0,9.227e-05,2]
[422716690,1779297045000,-500.0,9.315e-05,2]
[422716676,1779297045000,-161.960595,9.209e-05,2]
[422716689,1779297045000,-500.0,9.315e-05,2]
[422716674,1779297045000,-174.3291,9.178e-05,2]
[422716672,1779297045000,-10000.0,9.123e-05,2]
[422716675,1779297045000,-160.0,9.209e-05,2]
[422716685,1779297045000,-319.306931,9.255e-05,2]
[422716679,1779297045000,-5000.0,9.227e-05,2]
[422716688,1779297045000,-500.0,9.315e-05,2]
[422716698,1779297045000,-908.58,9.315e-05,2]
[422716701,1779297045000,-796.48,9.315e-05,2]
[422716686,1779297045000,-232.893474,9.301e-05,2]
[422716687,1779297045000,-2659.04,9.315e-05,2]
[422716693,1779297045000,-789.16,9.315e-05,2]
[422716692,1779297045000,-500.0,9.315e-05,2]
[422716694,1779297045000,-500.0,9.315e-05,2]
[422716696,1779297045000,-500.0,9.315e-05,2]
[422716695,1779297045000,-500.0,9.315e-05,2]
[422716697,1779297045000,-500.0,9.315e-05,2]
[422716703,1779297045000,-500.0,9.315e-05,2]
[422716704,1779297045000,-2303.01,9.315e-05,2]
[422716699,1779297045000,-528.15,9.315e-05,2]
[422716702,1779297045000,-500.0,9.315e-05,2]
[422716673,1779297045000,-603.18193584,9.173e-05,2]
[422716684,1779297045000,-275.439981,9.255e-05,2]
[422716671,1779297045000,-5079.33270931,9.119e-05,2]
[422716649,1779297045000,-4396.86,9.041e-05,2]
[422716669,1779297045000,-166.75416673,9.101e-05,7]
[422716638,1779297045000,-1295.05,9.041e-05,2]
[422716637,1779297045000,-1688.66,9.041e-05,2]
[422716646,1779297045000,-506.86150952,9.041e-05,2]
[422716648,1779297045000,-500.0,9.041e-05,2]
[422716647,1779297045000,-1772.93,9.041e-05,2]
[422716640,1779297045000,-890.67,9.041e-05,2]
[422716645,1779297045000,-1176.68,9.041e-05,2]
[422716641,1779297045000,-1363.6,9.041e-05,2]
[422716642,1779297045000,-500.0,9.041e-05,2]
[422716644,1779297045000,-5620.98,9.041e-05,2]
[422716643,1779297045000,-574.55,9.041e-05,2]
[422716639,1779297045000,-4515.09,9.041e-05,2]
[422716651,1779297045000,-500.0,9.041e-05,2]
[422716660,1779297045000,-500.0,9.041e-05,2]
[422716662,1779297045000,-573.0,9.041e-05,2]
[422716661,1779297045000,-500.0,9.041e-05,2]
[422716663,1779297045000,-581.0,9.062e-05,2]
[422716665,1779297045000,-517.41855156,9.074e-05,2]
[422716667,1779297045000,-356.04548147,9.101e-05,7]
[422716666,1779297045000,-311.87166808,9.074e-05,7]
[422716668,1779297045000,-262.28995852,9.101e-05,7]
[422716664,1779297045000,-262.10620227,9.074e-05,7]
[422716656,1779297045000,-500.0,9.041e-05,2]
[422716677,1779297045000,-163.921191,9.209e-05,2]
[422716659,1779297045000,-661.31,9.041e-05,2]
[422716658,1779297045000,-1982.07,9.041e-05,2]
[422716657,1779297045000,-500.0,9.041e-05,2]
[422716654,1779297045000,-2851.03,9.041e-05,2]
[422716653,1779297045000,-563.59,9.041e-05,2]
[422716652,1779297045000,-534.61740365,9.041e-05,2]
[422716650,1779297045000,-767.01,9.041e-05,2]
[422716655,1779297045000,-500.0,9.041e-05,2]
[422716700,1779297045000,-500.0,9.315e-05,2]
[422716722,1779297045000,-500.0,9.315e-05,2]
[422716707,1779297045000,-597.99,9.315e-05,2]
[422716746,1779297045000,-1702.51,9.315e-05,2]
[422716750,1779297045000,-500.0,9.315e-05,2]
[422716745,1779297045000,-1552.87,9.315e-05,2]
[422716751,1779297045000,-500.0,9.315e-05,2]
[422716753,1779297045000,-500.0,9.315e-05,2]
[422716766,1779297045000,-500.0,9.315e-05,2]
[422716765,1779297045000,-1763.57,9.315e-05,2]
[422716764,1779297045000,-1019.57,9.315e-05,2]
[422716763,1779297045000,-1719.79,9.315e-05,2]
[422716756,1779297045000,-500.0,9.315e-05,2]
[422716762,1779297045000,-500.0,9.315e-05,2]
[422716760,1779297045000,-2229.71,9.315e-05,2]
[422716758,1779297045000,-648.75,9.315e-05,2]
[422716754,1779297045000,-623.25,9.315e-05,2]
[422716757,1779297045000,-985.38,9.315e-05,2]
[422716755,1779297045000,-500.0,9.315e-05,2]
[422716752,1779297045000,-500.0,9.315e-05,2]
[422716773,1779297045000,-500.0,9.315e-05,2]
[422716774,1779297045000,-1065.15,9.315e-05,2]
[422716775,1779297045000,-500.0,9.315e-05,2]
[422716772,1779297045000,-1903.54,9.315e-05,2]
[422716769,1779297045000,-4937.73,9.315e-05,2]
[422716770,1779297045000,-3622.62,9.315e-05,2]
[422716744,1779297045000,-500.0,9.315e-05,2]
[422716771,1779297045000,-2698.74,9.315e-05,2]
[422716778,1779297045000,-1682.9,9.315e-05,2]
[422716767,1779297045000,-5469.1,9.315e-05,2]
[422716776,1779297045000,-500.0,9.315e-05,2]
[422716768,1779297045000,-500.0,9.315e-05,2]
[422716759,1779297045000,-500.0,9.315e-05,2]
[422716761,1779297045000,-500.0,9.315e-05,2]
[422716777,1779297045000,-1851.7,9.315e-05,2]
[422716747,1779297045000,-506.62,9.315e-05,2]
[422716705,1779297045000,-500.0,9.315e-05,2]
[422716748,1779297045000,-500.0,9.315e-05,2]
[422716749,1779297045000,-664.68,9.315e-05,2]
[422716706,1779297045000,-500.0,9.315e-05,2]
[422716713,1779297045000,-580.51,9.315e-05,2]
[422716716,1779297045000,-510.73,9.315e-05,2]
[422716717,1779297045000,-583.98602367,9.315e-05,2]
[422716708,1779297045000,-861.39,9.315e-05,2]
[422716715,1779297045000,-500.0,9.315e-05,2]
[422716710,1779297045000,-299.52,9.315e-05,2]
[422716709,1779297045000,-683.62,9.315e-05,2]
[422716718,1779297045000,-500.0,9.315e-05,2]
[422716714,1779297045000,-500.0,9.315e-05,2]
[422716711,1779297045000,-500.0,9.315e-05,2]
[422716719,1779297045000,-1325.68,9.315e-05,2]
[422716725,1779297045000,-713.38,9.315e-05,2]
[422716723,1779297045000,-500.0,9.315e-05,2]
[422716712,1779297045000,-500.0,9.315e-05,2]
[422716721,1779297045000,-500.0,9.315e-05,2]
[422716720,1779297045000,-538.86952019,9.315e-05,2]
[422716741,1779297045000,-500.0,9.315e-05,2]
[422716743,1779297045000,-608.34,9.315e-05,2]
[422716739,1779297045000,-500.0,9.315e-05,2]
[422716737,1779297045000,-838.68,9.315e-05,2]
[422716735,1779297045000,-1189.73,9.315e-05,2]
[422716730,1779297045000,-500.0,9.315e-05,2]
[422716740,1779297045000,-2105.11,9.315e-05,2]
[422716742,1779297045000,-500.0,9.315e-05,2]
[422716733,1779297045000,-500.0,9.315e-05,2]
[422716732,1779297045000,-500.0,9.315e-05,2]
[422716731,1779297045000,-968.08,9.315e-05,2]
[422716726,1779297045000,-322.76082537,9.315e-05,2]
[422716729,1779297045000,-307.34705169,9.315e-05,2]
[422716728,1779297045000,-500.0,9.315e-05,2]
[422716824,1779297046000,-500.0,9.315e-05,2]
[422716833,1779297046000,-886.31808801,9.327e-05,2]
[422716830,1779297046000,-573.0,9.315e-05,2]
[422716823,1779297046000,-500.0,9.315e-05,2]
[422716829,1779297046000,-500.0,9.315e-05,2]
[422716821,1779297046000,-563.59,9.315e-05,2]
[422716815,1779297046000,-1176.68,9.315e-05,2]
[422716822,1779297046000,-2851.03,9.315e-05,2]
[422716818,1779297046000,-4396.86,9.315e-05,2]
[422716820,1779297046000,-500.0,9.315e-05,2]
[422716819,1779297046000,-767.01,9.315e-05,2]
[422716814,1779297046000,-5620.98,9.315e-05,2]
[422716831,1779297046000,-573.0,9.321e-05,2]
[422716817,1779297046000,-299.47739356,9.315e-05,2]
[422716836,1779297046000,-5096.68837675,9.384e-05,2]
[422716845,1779297046000,-6837.36806,9.472e-05,2]
[422716828,1779297046000,-500.0,9.315e-05,2]
[422716816,1779297046000,-1772.93,9.315e-05,2]
[422716846,1779297046000,-13514.73612,9.472e-05,2]
[422716842,1779297046000,-160.0,9.409e-05,5]
[422716850,1779297046000,-160.0,9.472e-05,2]
[422716849,1779297046000,-1021.348686,9.472e-05,2]
[422716837,1779297046000,-5000.0,9.384e-05,2]
[422716832,1779297046000,-573.0,9.321e-05,2]
[422716848,1779297046000,-590.674343,9.472e-05,2]
[422716838,1779297046000,-5000.0,9.384e-05,2]
[422716827,1779297046000,-661.31,9.315e-05,2]
[422716826,1779297046000,-1982.07,9.315e-05,2]
[422716825,1779297046000,-159.28163401,9.315e-05,2]
[422716835,1779297046000,-207.17213936,9.33e-05,5]
[422716834,1779297046000,-984.43136807,9.327e-05,4]
[422716839,1779297046000,-5000.0,9.384e-05,2]
[422716813,1779297046000,-574.55,9.315e-05,2]
[422716806,1779297046000,-500.0,9.315e-05,2]
[422716810,1779297046000,-890.67,9.315e-05,2]
[422716841,1779297046000,-174.419104,9.397e-05,2]
[422716780,1779297046000,-2253.31,9.315e-05,2]
[422716779,1779297046000,-522.43,9.315e-05,2]
[422716781,1779297046000,-500.0,9.315e-05,2]
[422716783,1779297046000,-500.0,9.315e-05,2]
[422716784,1779297046000,-1128.17,9.315e-05,2]
[422716785,1779297046000,-1139.28,9.315e-05,2]
[422716786,1779297046000,-500.0,9.315e-05,2]
[422716782,1779297046000,-500.0,9.315e-05,2]
[422716789,1779297046000,-686.36,9.315e-05,2]
[422716787,1779297046000,-365.58750097,9.315e-05,2]
[422716791,1779297046000,-1159.54,9.315e-05,2]
[422716792,1779297046000,-1554.66,9.315e-05,2]
[422716790,1779297046000,-616.63,9.315e-05,2]
[422716794,1779297046000,-667.77,9.315e-05,2]
[422716795,1779297046000,-500.0,9.315e-05,2]
[422716788,1779297046000,-781.42,9.315e-05,2]
[422716809,1779297046000,-4515.09,9.315e-05,2]
[422716811,1779297046000,-1363.6,9.315e-05,2]
[422716803,1779297046000,-28395.55,9.315e-05,2]
[422716805,1779297046000,-500.0,9.315e-05,2]
[422716800,1779297046000,-500.0,9.315e-05,2]
[422716802,1779297046000,-842.68,9.315e-05,2]
[422716812,1779297046000,-500.0,9.315e-05,2]
[422716799,1779297046000,-2541.01,9.315e-05,2]
[422716807,1779297046000,-1688.66,9.315e-05,2]
[422716801,1779297046000,-6445.13,9.315e-05,2]
[422716804,1779297046000,-1433.22,9.315e-05,2]
[422716796,1779297046000,-1509.47,9.315e-05,2]
[422716808,1779297046000,-1295.05,9.315e-05,2]
[422716797,1779297046000,-580.89,9.315e-05,2]
[422716798,1779297046000,-2399.66,9.315e-05,2]
[422716847,1779297046000,-160.0,9.472e-05,2]
[422716852,1779297046000,-3024.120244,9.472e-05,2]
[422716844,1779297046000,-160.0,9.472e-05,2]
[422716887,1779297046000,-245.637024,9.567e-05,2]
[422716883,1779297046000,-160.0,9.567e-05,2]
[422716889,1779297046000,-250.0,9.577e-05,2]
[422716888,1779297046000,-331.274048,9.567e-05,2]
[422716880,1779297046000,-160.0,9.567e-05,2]
[422716885,1779297046000,-391.010763,9.567e-05,2]
[422716890,1779297046000,-573.0,9.579e-05,2]
[422716896,1779297046000,-500.0,9.589e-05,2]
[422716906,1779297046000,-500.0,9.589e-05,2]
[422716901,1779297046000,-500.0,9.589e-05,2]
[422716905,1779297046000,-796.48,9.589e-05,2]
[422716900,1779297046000,-500.0,9.589e-05,2]
[422716897,1779297046000,-789.16,9.589e-05,2]
[422716894,1779297046000,-500.0,9.589e-05,2]
[422716898,1779297046000,-500.0,9.589e-05,2]
[422716895,1779297046000,-511.54,9.589e-05,2]
[422716902,1779297046000,-908.58,9.589e-05,2]
[422716910,1779297046000,-500.0,9.589e-05,2]
[422716909,1779297046000,-500.0,9.589e-05,2]
[422716916,1779297046000,-580.51,9.589e-05,2]
[422716843,1779297046000,-822.6078,9.452e-05,2]